bitfinex/quotes_SOLUSD_20241105
["timestamp","ask_amount","ask_price","bid_price","bid_amount"]
[1730843659552,6.0299,165.84,165.78,21.6376]
[1730843659756,14.90884732,165.84,165.79,8.87894732]
[1730843660662,6.0306,165.82,165.79,8.87894732]
[1730843660835,6.0306,165.82,165.78,30.51654732]
[1730843663048,8.87894732,165.84,165.78,30.51654732]
[1730843663259,4.45183205,165.83,165.78,30.51654732]
[1730843663456,8.87894732,165.84,165.78,30.51654732]
[1730843663657,4.45395426,165.83,165.8,8.87894732]
[1730843663840,8.87894732,165.85,165.8,8.87894732]
[1730843664030,4.45421057,165.84,165.8,8.87894732]
[1730843664236,4.45421057,165.83,165.8,8.87894732]
[1730843664564,8.87894732,165.85,165.8,8.87894732]
[1730843664943,10.48587009,165.84,165.8,8.87894732]
[1730843665137,4.45597009,165.83,165.8,8.87894732]
[1730843665642,4.45597009,165.83,165.79,8.87894732]
[1730843665961,6.0306,165.82,165.79,8.87894732]
[1730843666255,6.0306,165.82,165.78,21.6376]
[1730843666464,6.0306,165.82,165.78,30.51654732]
[1730843666661,3.57722986,165.81,165.78,30.51654732]
[1730843666863,6.0306,165.82,165.78,30.51654732]
[1730843666864,3.57722986,165.8,165.78,30.51654732]
[1730843667061,3.57722986,165.79,165.78,30.51654732]
[1730843667646,3.57722986,165.79,165.78,21.6376]
[1730843667847,3.57722986,165.79,165.77,0.3063285]
[1730843668061,3.57722986,165.78,165.77,0.3063285]
[1730843668249,3.57722986,165.8,165.77,0.3063285]
[1730843668447,3.57722986,165.79,165.77,0.3063285]
[1730843668764,3.57722986,165.78,165.77,0.3063285]
[1730843671750,9.60922986,165.78,165.77,0.3063285]
[1730843672645,3.57722986,165.78,165.77,0.3063285]
[1730843672844,6.0307,165.82,165.77,6.3387285]
[1730843673045,3.58523683,165.81,165.8,8.87894732]
[1730843673757,3.58523683,165.81,165.79,8.87894732]
[1730843674061,3.58523683,165.8,165.79,8.87894732]
[1730843675270,3.58523683,165.8,165.77,21.4198285]
[1730843675569,3.58523683,165.79,165.77,21.4198285]
[1730843675952,6.0302,165.83,165.77,21.4198285]
[1730843676148,8.05814774,165.82,165.77,21.4198285]
[1730843676356,8.0584163,165.81,165.77,15.3874285]
[1730843676561,3.58812967,165.8,165.77,21.4198285]
[1730843676868,3.58812967,165.79,165.77,21.4198285]
[1730843677174,6.0302,165.83,165.77,21.4198285]
[1730843677378,8.06045083,165.82,165.79,8.87894732]
[1730843677556,3.58926591,165.81,165.79,8.87894732]
[1730843677749,3.58926591,165.8,165.79,8.87894732]
[1730843678668,8.06117784,165.8,165.77,15.3874285]
[1730843678879,3.58926591,165.79,165.77,9.18527582]
[1730843679060,3.58926591,165.78,165.77,0.3063285]
[1730843679260,3.58956394,165.78,165.77,0.3063285]
[1730843679477,8.06156665,165.78,165.77,0.3063285]
[1730843679653,8.06172411,165.78,165.77,9.18527582]
[1730843679859,8.06168677,165.78,165.77,9.18527582]
[1730843681554,8.06168677,165.78,165.77,0.3063285]
[1730843681768,8.06168677,165.78,165.77,9.18527582]
[1730843682073,8.06168677,165.78,165.77,0.3063285]
[1730843682275,8.06168677,165.78,165.77,9.18527582]
[1730843684578,8.06168677,165.78,165.77,15.21767582]
[1730843685773,8.06857618,165.78,165.77,6.3387285]
[1730843685964,8.06857618,165.78,165.77,15.21767582]
[1730843689359,8.06993414,165.78,165.77,15.21767582]
[1730843690293,4.48524505,165.78,165.77,15.21767582]
[1730843690661,8.07746633,165.78,165.77,15.21767582]
[1730843691081,8.07746633,165.78,165.77,9.18527582]
[1730843691468,8.07746633,165.78,165.77,0.3063285]
[1730843693666,14.10946633,165.78,165.77,0.3063285]
[1730843695588,22.98841365,165.78,165.77,0.3063285]
[1730843697368,22.9882511,165.78,165.77,0.3063285]
[1730843699006,22.9882511,165.78,165.69,6.3415285]
[1730843699007,22.94129,165.77,165.69,0.3063285]
[1730843699194,28.07730378,165.76,165.69,0.3063285]
[1730843699490,8.07730378,165.75,165.69,9.18527582]
[1730843699671,16.9562511,165.74,165.69,9.18527582]
[1730843699867,8.07730378,165.73,165.69,9.18527582]
[1730843700071,8.87894732,165.74,165.69,9.18527582]
[1730843700072,8.07730378,165.72,165.69,9.18527582]
[1730843700409,8.07730378,165.71,165.69,0.3063285]
[1730843700701,8.0729148,165.7,165.69,9.18527582]
[1730843700870,12.54883747,165.7,165.69,9.18527582]
[1730843701200,12.54723099,165.7,165.69,39.12294982]
[1730843701869,8.06692495,165.7,165.69,59.24843982]
[1730843702175,8.06692495,165.7,165.69,59.37392982]
[1730843702689,4.48195732,165.7,165.69,59.37392982]
[1730843702890,6.0324,165.77,165.7,24.027864]
[1730843703082,4.4791233,165.76,165.72,8.87894732]
[1730843703405,4.4791233,165.75,165.73,8.87894732]
[1730843703581,4.4791233,165.74,165.73,8.87894732]
[1730843704094,8.06136983,165.74,165.73,8.87894732]
[1730843705482,8.06232706,165.74,165.73,14.91284732]
[1730843705683,8.06232706,165.74,165.73,8.87894732]
[1730843706810,8.06232706,165.74,165.72,14.91314732]
[1730843706982,8.06232706,165.73,165.72,38.81552132]
[1730843707301,4.48132035,165.73,165.72,38.81552132]
[1730843707502,8.06526561,165.73,165.72,38.81552132]
[1730843708000,4.48132035,165.73,165.72,38.81552132]
[1730843709203,8.87894732,165.79,165.72,38.81552132]
[1730843709377,14.09830346,165.78,165.74,8.87894732]
[1730843709588,8.06630346,165.77,165.74,8.87894732]
[1730843709795,8.06630346,165.76,165.74,8.87894732]
[1730843709991,8.06630346,165.75,165.73,23.902374]
[1730843710200,6.032,165.78,165.74,8.87894732]
[1730843710504,8.06647435,165.77,165.75,8.87894732]
[1730843710677,8.06647435,165.76,165.75,8.87894732]
[1730843713205,14.09927435,165.76,165.71,21.6378]
[1730843713393,8.06647435,165.75,165.71,24.48224732]
[1730843713581,8.06647435,165.74,165.71,8.87894732]
[1730843713783,8.06647435,165.73,165.71,8.87894732]
[1730843713998,6.0328,165.76,165.72,8.87894732]
[1730843714186,8.06600899,165.75,165.72,8.87894732]
[1730843714401,8.06600899,165.74,165.72,8.87894732]
[1730843714707,8.06573626,165.73,165.72,8.87894732]
[1730843714897,8.06573365,165.73,165.72,8.87894732]
[1730843715204,8.06573365,165.73,165.71,8.87894732]
[1730843715385,8.06573365,165.72,165.71,8.87894732]
[1730843715995,8.06573365,165.72,165.7,6.0349]
[1730843716191,6.0335,165.74,165.71,8.87894732]
[1730843716497,8.06496111,165.73,165.71,8.87894732]
[1730843716805,8.06496111,165.72,165.71,24.027864]
[1730843716991,8.06496111,165.72,165.71,32.90681132]
[1730843717995,8.06496111,165.72,165.71,38.94141132]
[1730843718384,11.65138354,165.72,165.71,8.87894732]
[1730843719003,8.06691805,165.72,165.71,8.87894732]
[1730843725311,8.06691805,165.72,165.71,38.81592132]
[1730843726018,3.58560102,165.72,165.71,38.81592132]
[1730843726206,8.06869453,165.72,165.71,38.81592132]
[1730843726522,8.06869453,165.72,165.71,29.936974]
[1730843726718,8.06869453,165.72,165.71,38.81592132]
[1730843729699,8.0654457,165.72,165.71,38.81592132]
[1730843731821,8.0654457,165.72,165.71,38.94141132]
[1730843732117,3.58826779,165.72,165.71,59.06690132]
[1730843733111,6.0321,165.78,165.72,24.027864]
[1730843733323,4.47864059,165.77,165.74,8.87894732]
[1730843733529,4.47864059,165.76,165.74,8.87894732]
[1730843733822,8.06811845,165.75,165.74,8.87894732]
[1730843734711,8.06811845,165.75,165.74,38.81482132]
[1730843735308,8.06811845,165.75,165.74,38.94031132]
[1730843735800,8.06811845,165.75,165.74,6.0335]
[1730843736006,8.06811845,165.75,165.74,14.91244732]
[1730843736623,4.47864059,165.75,165.74,14.91244732]
[1730843736824,8.07147538,165.75,165.74,14.91244732]
[1730843737132,4.48186928,165.75,165.74,14.91244732]
[1730843737305,8.07456895,165.75,165.74,14.91244732]
[1730843739409,8.07456895,165.75,165.74,15.03793732]
[1730843739615,8.07456895,165.75,165.74,38.94031132]
[1730843739917,8.07456895,165.75,165.74,59.06580132]
[1730843740298,8.07456895,165.75,165.74,59.16580132]
[1730843741197,3.59269967,165.75,165.74,94.7815906]
[1730843741398,36.47274732,165.86,165.76,0.1]
[1730843741615,4.48422684,165.85,165.82,8.87894732]
[1730843741824,4.48422684,165.84,165.8,0.57647]
[1730843742026,4.48422684,165.83,165.82,44.027864]
[1730843742320,4.48422684,165.83,165.79,6.4078]
[1730843742321,4.48422684,165.83,165.79,0.25098]
[1730843742524,4.48422684,165.82,165.81,23.776884]
[1730843742729,4.48422684,165.82,165.81,23.902374]
[1730843742941,4.48422684,165.82,165.81,53.13230132]
[1730843743102,6.28682713,165.93,165.89,8.87894732]
[1730843743301,6.0263,165.94,165.9,8.87894732]
[1730843743497,6.0263,165.94,165.86,21.1012]
[1730843743728,14.90524732,165.94,165.88,8.87894732]
[1730843744066,14.90524732,165.94,165.89,8.87894732]
[1730843744403,16.3347,165.95,165.9,8.87894732]
[1730843744726,22.3607,165.95,165.9,8.87894732]
[1730843749426,22.3607,165.95,165.89,38.80932132]
[1730843749427,31.23964732,165.95,165.89,38.80932132]
[1730843749932,22.3607,165.95,165.9,8.87894732]
[1730843751630,31.23964732,165.95,165.89,29.930374]
[1730843751823,31.23964732,165.95,165.89,38.80932132]
[1730843752133,22.3607,165.95,165.9,8.87894732]
[1730843753206,31.23964732,165.95,165.89,8.87894732]
[1730843753530,8.87894732,165.93,165.87,43.776884]
[1730843753729,8.87894732,165.93,165.87,52.65583132]
[1730843754232,8.87894732,165.94,165.88,8.87894732]
[1730843754532,6.0266,165.93,165.89,8.87894732]
[1730843754730,16.3347,165.95,165.9,8.87894732]
[1730843754920,22.3609,165.95,165.91,8.87894732]
[1730843755120,4.45963184,165.94,165.91,8.87894732]
[1730843755327,4.45963184,165.93,165.91,8.87894732]
[1730843755525,4.45963184,165.92,165.91,8.87894732]
[1730843757244,10.48404232,165.92,165.89,8.87894732]
[1730843757546,6.0262,165.94,165.89,8.87894732]
[1730843757843,4.45567838,165.93,165.89,8.87894732]
[1730843758031,4.45567838,165.92,165.89,8.87894732]
[1730843758240,6.0262,165.94,165.89,8.87894732]
[1730843758544,4.45473758,165.93,165.89,8.87894732]
[1730843758736,4.45473758,165.92,165.88,15.03283732]
[1730843758938,6.0267,165.93,165.88,15.03283732]
[1730843759245,4.45471293,165.92,165.88,15.03283732]
[1730843759441,6.0267,165.93,165.88,15.03283732]
[1730843759641,4.4542891,165.92,165.88,15.03283732]
[1730843759942,6.0267,165.93,165.88,15.03283732]
[1730843760123,4.45424721,165.92,165.88,15.03283732]
[1730843760323,6.0267,165.93,165.88,15.03283732]
[1730843760533,4.45424461,165.92,165.89,8.87894732]
[1730843760732,6.0267,165.93,165.89,8.87894732]
[1730843760932,4.4542664,165.92,165.89,8.87894732]
[1730843761239,6.0267,165.93,165.89,8.87894732]
[1730843761422,4.45421375,165.92,165.89,8.87894732]
[1730843761623,6.0267,165.93,165.89,8.87894732]
[1730843761930,4.45365651,165.92,165.89,8.87894732]
[1730843762237,6.0267,165.93,165.89,8.87894732]
[1730843762444,4.45289598,165.92,165.89,8.87894732]
[1730843762641,6.0267,165.93,165.89,8.87894732]
[1730843763148,8.87894732,165.94,165.89,8.87894732]
[1730843763331,13.33080457,165.93,165.87,58.848884]
[1730843763538,13.33080457,165.93,165.87,73.75663132]
[1730843763842,4.45185725,165.92,165.89,8.87894732]
[1730843764021,14.90404732,165.97,165.91,8.87894732]
[1730843764229,4.45139126,165.96,165.91,8.87894732]
[1730843764529,4.45139126,165.95,165.91,8.87894732]
[1730843764730,14.90404732,165.97,165.91,8.87894732]
[1730843765028,13.32934932,165.96,165.9,8.87894732]
[1730843765227,14.90484732,165.95,165.89,29.97714732]
[1730843765652,8.87894732,165.94,165.89,21.0982]
[1730843766637,14.90534732,165.94,165.89,21.0982]
[1730843767041,6.0264,165.94,165.89,29.97714732]
[1730843767348,6.0259,165.95,165.9,8.87894732]
[1730843767649,8.87894732,165.94,165.87,65.714484]
[1730843767844,8.87894732,165.94,165.88,8.87894732]
[1730843768229,8.87894732,165.93,165.87,8.87894732]
[1730843768435,8.87894732,165.94,165.88,8.87894732]
[1730843768644,6.0266,165.93,165.88,8.87894732]
[1730843768950,14.90554732,165.93,165.87,8.87894732]
[1730843770027,8.87894732,165.91,165.86,8.87894732]
[1730843770320,8.87894732,165.91,165.82,30.1521]
[1730843770321,8.87894732,165.87,165.82,23.95534732]
[1730843770747,14.90794732,165.87,165.82,23.95534732]
[1730843771143,14.90794732,165.87,165.81,8.87894732]
[1730843771462,8.87894732,165.86,165.8,14.90994732]
[1730843771627,8.87894732,165.86,165.81,20.0]
[1730843771950,6.029,165.87,165.81,20.0]
[1730843771951,14.90794732,165.87,165.81,28.87894732]
[1730843772251,6.029,165.87,165.81,28.87894732]
[1730843772549,6.029,165.87,165.82,8.87894732]
[1730843772752,8.87894732,165.85,165.8,29.98834732]
[1730843773442,14.90864732,165.85,165.8,29.98834732]
[1730843773754,8.87894732,165.84,165.79,16.4446]
[1730843773927,8.87894732,165.82,165.76,15.0815]
[1730843774128,21.4634,165.85,165.74,15.3774]
[1730843774129,8.87894732,165.8,165.74,15.3774]
[1730843774438,8.87894732,165.82,165.76,8.87894732]
[1730843775228,8.87894732,165.81,165.75,8.87894732]
[1730843775540,14.91024732,165.81,165.75,14.91204732]
[1730843775743,14.91024732,165.81,165.74,30.4612]
[1730843775932,8.87894732,165.8,165.74,45.37364732]
[1730843777450,6.0299,165.84,165.75,8.87894732]
[1730843777634,8.87894732,165.81,165.75,8.87894732]
[1730843778842,6.0313,165.8,165.75,8.87894732]
[1730843779643,6.0313,165.8,165.75,14.91204732]
[1730843780334,30.5075,165.85,165.75,14.91204732]
[1730843780335,8.87894732,165.82,165.76,8.87894732]
[1730843780645,21.4634,165.85,165.77,8.87894732]
[1730843780830,8.87894732,165.83,165.77,14.91114732]
[1730843781854,6.0306,165.82,165.77,14.91114732]
[1730843783960,8.87894732,165.82,165.77,14.91114732]
[1730843784161,8.87894732,165.82,165.76,32.78132132]
[1730843784461,8.87894732,165.81,165.76,38.81402132]
[1730843785359,14.90974732,165.82,165.76,38.81402132]
[1730843785565,15.4337,165.85,165.78,32.78132132]
[1730843785566,6.0299,165.84,165.78,32.78132132]
[1730843785734,14.90884732,165.84,165.78,32.78132132]
[1730843786246,8.87894732,165.83,165.78,0.12549]
[1730843786648,8.87894732,165.83,165.78,6.15749]
[1730843786649,14.90914732,165.83,165.78,6.15749]
[1730843787248,6.0302,165.83,165.78,15.03643732]
[1730843787563,14.90914732,165.83,165.78,15.03643732]
[1730843790063,14.90914732,165.83,165.78,6.15749]
[1730843791350,14.90914732,165.83,165.78,6.032]
[1730843791573,8.87894732,165.81,165.77,20.0]
[1730843792061,8.87894732,165.81,165.76,15.082]
[1730843792363,6.0302,165.83,165.76,15.082]
[1730843792567,8.87894732,165.81,165.76,21.1148]
[1730843794342,6.0299,165.84,165.76,29.99374732]
[1730843794547,8.87894732,165.82,165.76,29.99374732]
[1730843795555,8.87894732,165.82,165.77,23.902374]
[1730843795745,6.03,165.84,165.78,8.87894732]
[1730843795945,14.90894732,165.84,165.78,8.87894732]
[1730843796583,4.4638516,165.83,165.78,8.87894732]
[1730843796758,14.90894732,165.84,165.79,6.0317]
[1730843799376,14.90924732,165.83,165.79,6.0317]
[1730843800259,14.90924732,165.83,165.78,6.032]
[1730843802676,14.90884732,165.84,165.78,29.99114732]
[1730843803868,8.87894732,165.83,165.78,21.1122]
[1730843805274,14.90884732,165.84,165.78,21.1122]
[1730843806165,8.87894732,165.83,165.78,21.1122]
[1730843807055,6.0299,165.84,165.78,21.1122]
[1730843807377,14.90884732,165.84,165.78,29.99114732]
[1730843808159,8.87894732,165.85,165.78,29.99114732]
[1730843808369,4.45498544,165.84,165.78,29.99114732]
[1730843808569,8.87894732,165.85,165.78,29.99114732]
[1730843808767,6.0284,165.88,165.8,23.776884]
[1730843808965,8.87894732,165.86,165.8,23.776884]
[1730843809157,13.33249998,165.85,165.8,23.776884]
[1730843809360,8.87894732,165.85,165.8,23.776884]
[1730843809775,8.87894732,165.85,165.8,29.807984]
[1730843810767,14.90834732,165.86,165.8,38.68693132]
[1730843810968,4.44934033,165.85,165.8,38.68693132]
[1730843811279,21.3624797,165.9,165.81,0.12549]
[1730843811598,21.3624797,165.9,165.81,9.00443732]
[1730843811599,8.87894732,165.87,165.81,9.00443732]
[1730843811754,4.44978832,165.86,165.82,8.87894732]
[1730843811956,6.0279,165.9,165.84,0.12549]
[1730843812159,4.45050725,165.89,165.85,8.87894732]
[1730843812482,24.74174732,165.91,165.85,8.87894732]
[1730843812483,4.45050725,165.88,165.85,8.87894732]
[1730843812780,30.76924732,165.91,165.85,8.87894732]
[1730843812781,14.90644732,165.91,165.85,8.87894732]
[1730843812976,4.45048004,165.9,165.85,8.87894732]
[1730843813161,6.027,165.92,165.86,9.00443732]
[1730843813358,4.45082264,165.91,165.86,9.00443732]
[1730843813579,14.90594732,165.92,165.86,9.00443732]
[1730843813770,4.45190975,165.91,165.87,8.87894732]
[1730843813963,14.90594732,165.92,165.87,8.87894732]
[1730843815089,14.90594732,165.92,165.86,6.0288]
[1730843815090,8.87894732,165.91,165.86,6.0288]
[1730843816167,14.90624732,165.91,165.86,6.0288]
[1730843816384,8.87894732,165.88,165.83,38.68603132]
[1730843816583,8.87894732,165.88,165.84,0.12549]
[1730843816768,6.0273,165.91,165.84,0.12549]
[1730843816769,8.87894732,165.87,165.84,0.12549]
[1730843817687,6.0262,165.94,165.86,8.87894732]
[1730843817987,8.87894732,165.92,165.87,8.87894732]
[1730843818167,4.45288226,165.91,165.87,8.87894732]
[1730843818368,8.87894732,165.92,165.87,8.87894732]
[1730843818774,8.87894732,165.92,165.86,8.87894732]
[1730843818775,14.90624732,165.92,165.86,8.87894732]
[1730843818975,13.33275916,165.91,165.86,23.776884]
[1730843819184,8.87894732,165.9,165.85,21.1033]
[1730843819893,14.90684732,165.9,165.85,15.0738]
[1730843820090,8.87894732,165.87,165.82,64.883884]
[1730843820385,8.87894732,165.87,165.82,44.883884]
[1730843821769,8.87894732,165.85,165.81,20.0]
[1730843821976,8.87894732,165.85,165.8,20.0]
[1730843822291,8.87894732,165.84,165.8,20.0]
[1730843822471,8.87894732,165.85,165.8,20.0]
[1730843823577,14.90844732,165.85,165.8,26.0312]
[1730843824668,8.87894732,165.86,165.8,34.91014732]
[1730843825278,4.45581404,165.85,165.8,34.91014732]
[1730843825487,8.87894732,165.86,165.8,34.91014732]
[1730843825797,4.45575563,165.85,165.8,34.91014732]
[1730843825984,8.87894732,165.85,165.8,26.0312]
[1730843826183,8.87894732,165.85,165.8,6.0312]
[1730843827194,14.90844732,165.85,165.8,6.0312]
[1730843827372,4.45736407,165.84,165.8,6.0312]
[1730843827574,14.90844732,165.85,165.8,6.0312]
[1730843828392,4.45882522,165.84,165.8,6.0312]
[1730843828594,14.90844732,165.85,165.8,6.0312]
[1730843828790,4.45732116,165.84,165.8,6.0312]
[1730843829098,14.90844732,165.85,165.8,6.0312]
[1730843829296,4.45775041,165.84,165.8,6.0312]
[1730843829594,14.90844732,165.85,165.8,6.0312]
[1730843829771,4.45825478,165.84,165.8,6.0312]
[1730843829971,14.90844732,165.85,165.8,6.0312]
[1730843830272,4.45811676,165.84,165.8,6.0312]
[1730843830473,8.87894732,165.84,165.8,6.0312]
[1730843831281,8.87894732,165.85,165.8,6.0312]
[1730843831471,4.45856902,165.84,165.8,6.0312]
[1730843831672,14.90854732,165.85,165.8,6.0312]
[1730843831894,4.45859718,165.84,165.8,6.0312]
[1730843832107,14.90854732,165.85,165.8,6.0312]
[1730843832281,4.45847799,165.84,165.8,6.0312]
[1730843832592,14.90854732,165.85,165.8,6.0312]
[1730843832786,4.45845221,165.84,165.8,6.0312]
[1730843832996,14.90854732,165.85,165.8,6.0312]
[1730843833174,4.45791302,165.84,165.8,6.0312]
[1730843833472,14.90854732,165.85,165.8,6.0312]
[1730843833672,4.45726213,165.84,165.8,6.0312]
[1730843833980,14.90854732,165.85,165.8,6.0312]
[1730843834393,4.45718438,165.84,165.8,6.0312]
[1730843834579,14.90854732,165.85,165.8,6.0312]
[1730843834770,4.4574943,165.84,165.8,6.0312]
[1730843834966,14.90854732,165.85,165.8,6.0312]
[1730843835171,4.45749692,165.84,165.8,6.0312]
[1730843835383,14.90854732,165.85,165.8,6.0312]
[1730843835587,4.45783138,165.84,165.8,6.0312]
[1730843835873,14.90854732,165.85,165.8,6.0312]
[1730843836086,19.36629289,165.84,165.77,6.0323]
[1730843836276,8.87894732,165.82,165.77,6.0323]
[1730843836795,13.33547763,165.81,165.77,15.0811]
[1730843836998,8.87894732,165.81,165.77,15.0811]
[1730843837194,8.87894732,165.81,165.76,6.0327]
[1730843837694,6.03,165.84,165.74,15.0834]
[1730843837695,8.87894732,165.79,165.74,15.0834]
[1730843837915,8.87894732,165.78,165.72,8.87894732]
[1730843838215,8.87894732,165.78,165.69,0.3063285]
[1730843838216,8.87894732,165.76,165.7,30.00074732]
[1730843838698,8.87894732,165.76,165.7,21.1218]
[1730843839014,8.87894732,165.76,165.7,30.00074732]
[1730843839198,14.91194732,165.76,165.7,30.00074732]
[1730843839398,14.91194732,165.76,165.69,0.3063285]
[1730843839399,8.87894732,165.74,165.69,0.3063285]
[1730843839610,4.45100122,165.73,165.69,0.3063285]
[1730843839808,8.87894732,165.73,165.69,0.3063285]
[1730843840797,14.91264732,165.74,165.69,9.18527582]
[1730843840995,4.44918432,165.73,165.69,15.22057582]
[1730843841194,14.91264732,165.74,165.69,15.22057582]
[1730843841394,4.45007323,165.73,165.69,15.22057582]
[1730843842417,14.91264732,165.74,165.69,15.22057582]
[1730843843014,14.91264732,165.74,165.69,6.3416285]
[1730843843211,4.4463328,165.73,165.69,6.3416285]
[1730843843515,14.91264732,165.74,165.69,6.3416285]
[1730843844617,14.91264732,165.74,165.69,15.22057582]
[1730843845393,14.91264732,165.74,165.69,6.3416285]
[1730843847501,14.91264732,165.74,165.69,15.22057582]
[1730843851933,14.91264732,165.74,165.69,6.3416285]
[1730843852129,8.87894732,165.72,165.69,0.3063285]
[1730843852514,8.87894732,165.71,165.69,0.3063285]
[1730843853341,8.87894732,165.7,165.69,0.3063285]
[1730843854213,14.91394732,165.7,165.69,0.3063285]
[1730843856426,31.43273732,165.7,165.69,0.3063285]
[1730843857034,55.33511132,165.7,165.69,0.3063285]
[1730843857211,82.09970132,165.7,165.69,0.3063285]
[1730843857413,122.02963895,165.7,165.69,0.3063285]
[1730843857612,86.51384967,165.7,165.69,0.3063285]
[1730843858109,86.41384967,165.7,165.69,0.3063285]
[1730843858315,82.09970132,165.7,165.69,0.3063285]
[1730843859831,0.22549,165.67,165.61,0.3063285]
[1730843860038,8.87894732,165.62,165.61,0.3063285]
[1730843860612,0.35098,165.66,165.61,0.3063285]
[1730843860613,8.87894732,165.63,165.61,0.3063285]
[1730843861024,43.876884,165.69,165.61,0.3063285]
[1730843861307,8.87894732,165.64,165.61,0.3063285]
[1730843861734,14.91614732,165.64,165.61,0.3063285]
[1730843861939,8.87894732,165.64,165.61,0.3063285]
[1730843862132,38.0199,165.7,165.62,14.91684732]
[1730843862327,8.87894732,165.66,165.61,9.18527582]
[1730843862519,8.87894732,165.65,165.61,6.3445285]
[1730843862718,8.87894732,165.67,165.61,30.31917582]
[1730843862924,8.87894732,165.65,165.61,21.4402285]
[1730843863632,8.87894732,165.66,165.61,21.4402285]
[1730843863939,8.87894732,165.66,165.61,0.3063285]
[1730843863940,8.87894732,165.62,165.61,0.3063285]
[1730843866239,14.91684732,165.62,165.61,0.3063285]
[1730843866608,15.04233732,165.62,165.61,0.3063285]
[1730843867322,20.12549,165.59,165.52,0.3063285]
[1730843867513,0.25098,165.6,165.52,0.3063285]
[1730843867720,8.87894732,165.57,165.52,0.3063285]
[1730843868029,8.87894732,165.57,165.52,9.18527582]
[1730843868237,21.7663,165.62,165.52,9.18527582]
[1730843868421,8.87894732,165.58,165.53,8.87894732]
[1730843868625,8.87894732,165.58,165.52,30.33037582]
[1730843868827,8.87894732,165.57,165.52,30.33037582]
[1730843869334,14.91874732,165.57,165.52,0.3063285]
[1730843869524,8.87894732,165.54,165.52,0.3063285]
[1730843869836,8.87894732,165.56,165.52,0.3063285]
[1730843870019,8.87894732,165.53,165.52,0.3063285]
[1730843870341,28.87894732,165.53,165.52,0.3063285]
[1730843870510,30.449564,165.53,165.52,0.3063285]
[1730843870843,8.87894732,165.53,165.52,0.3063285]
[1730843871007,8.87894732,165.54,165.52,0.3063285]
[1730843871308,8.87894732,165.53,165.52,0.3063285]
[1730843871709,8.87894732,165.54,165.52,0.3063285]
[1730843871928,8.87894732,165.53,165.52,0.3063285]
[1730843872754,6.0401,165.56,165.52,0.3063285]
[1730843872909,8.87894732,165.53,165.52,0.3063285]
[1730843873314,14.92014732,165.53,165.52,0.3063285]
[1730843873920,15.04563732,165.53,165.52,0.3063285]
[1730843875346,6.0408,165.55,165.52,0.3063285]
[1730843875540,30.067964,165.56,165.52,0.3063285]
[1730843875851,8.87894732,165.54,165.52,0.3063285]
[1730843876224,8.87894732,165.55,165.52,0.3063285]
[1730843876924,8.87894732,165.54,165.52,0.3063285]
[1730843877240,6.16559,165.56,165.52,0.3063285]
[1730843877241,8.87894732,165.55,165.52,0.3063285]
[1730843878946,14.91974732,165.55,165.52,0.3063285]
[1730843882123,8.87894732,165.54,165.52,0.3063285]
[1730843882451,8.87894732,165.53,165.52,0.3063285]
[1730843883421,6.0408,165.55,165.52,0.3063285]
[1730843883622,8.87894732,165.53,165.52,0.3063285]
[1730843884223,14.92014732,165.53,165.52,0.3063285]
[1730843884743,74.5892906,165.53,165.52,0.3063285]
[1730843884949,74.5892906,165.53,165.44,0.3063285]
[1730843884950,0.25098,165.5,165.44,0.3063285]
[1730843885146,8.87894732,165.45,165.44,0.3063285]
[1730843886228,50.5643266,165.45,165.44,0.3063285]
[1730843886424,81.0200906,165.45,165.44,0.3063285]
[1730843886623,15.17402732,165.45,165.44,0.3063285]
[1730843886824,14.92304732,165.45,165.44,0.3063285]
[1730843887330,6.0441,165.45,165.44,0.3063285]
[1730843887540,14.05686837,165.45,165.44,0.3063285]
[1730843887947,6.0428,165.49,165.44,0.3063285]
[1730843888249,14.05686837,165.48,165.44,0.3063285]
[1730843888630,6.0428,165.49,165.44,0.3063285]
[1730843888631,14.05686837,165.47,165.44,0.3063285]
[1730843889043,14.05686837,165.48,165.44,0.3063285]
[1730843889346,14.05686837,165.49,165.44,20.40749687]
[1730843889556,14.05686837,165.5,165.45,14.05686837]
[1730843889850,14.05686837,165.5,165.44,35.51869687]
[1730843890029,14.05686837,165.5,165.45,14.05686837]
[1730843890357,14.05686837,165.51,165.46,14.05686837]
[1730843890525,14.05686837,165.51,165.45,35.21126837]
[1730843890728,14.05686837,165.51,165.46,14.05686837]
[1730843891027,12.30692757,165.58,165.5,14.05686837]
[1730843891228,14.05686837,165.52,165.47,14.05686837]
[1730843891444,14.05686837,165.53,165.47,14.05686837]
[1730843892042,14.05686837,165.53,165.48,14.05686837]
[1730843892244,14.05686837,165.54,165.48,14.05686837]
[1730843892449,14.05686837,165.53,165.48,6.0427]
[1730843892656,14.05686837,165.53,165.48,20.09956837]
[1730843893125,14.05686837,165.53,165.48,35.20706837]
[1730843893327,14.05686837,165.54,165.48,35.20706837]